bitfinex/quotes_ETHUSD_20220201
["timestamp","ask_amount","ask_price","bid_price","bid_amount"]
[1643708466318,1.51520943,2745.0,2744.9,8.29407086]
[1643708466519,1.51520943,2745.0,2744.8,0.66306573]
[1643708466725,1.51520943,2745.0,2744.5,2.6825758]
[1643708466920,1.51520943,2745.0,2744.5,2.2475758]
[1643708467621,1.51520943,2745.0,2744.7,0.92831167]
[1643708468461,1.51520943,2745.0,2744.8,0.435]
[1643708469661,1.51520943,2745.0,2744.7,0.92831167]
[1643708470265,1.51520943,2745.0,2744.8,0.435]
[1643708470863,0.08298983,2745.5,2744.9,6.68995011]
[1643708471066,0.08298983,2745.5,2745.0,0.435]
[1643708471268,0.08298983,2745.5,2745.4,0.92323287]
[1643708471539,0.08298983,2745.5,2745.0,0.10825951]
[1643708471728,0.08298983,2745.5,2744.8,2.25596]
[1643708472733,0.08298983,2745.5,2745.2,0.93953793]
[1643708473933,0.08298983,2745.5,2745.2,1.37453793]
[1643708474134,1.04885997,2747.2,2745.4,6.5]
[1643708474338,1.24399704,2747.7,2745.4,6.5]
[1643708474339,2.73055154,2748.4,2746.7,0.0120153]
[1643708474538,1.70447841,2748.9,2747.0,5.439]
[1643708474736,8.89496361,2749.1,2748.1,0.01274787]
[1643708474737,0.84870245,2748.8,2748.1,0.01274787]
[1643708474938,0.67557512,2749.0,2748.3,0.01239961]
[1643708475141,0.62767247,2748.9,2748.4,0.435]
[1643708475386,0.28794855,2749.3,2748.8,0.01270166]
[1643708475580,6.1901,2750.4,2748.8,0.01270166]
[1643708475581,1.35153901,2750.0,2749.0,0.93760441]
[1643708475780,1.80131731,2750.2,2749.7,0.86028224]
[1643708475781,1.5359792,2749.9,2749.7,0.86028224]
[1643708475978,0.67595382,2749.8,2749.1,2.48163174]
[1643708476178,1.53575106,2749.7,2749.3,0.18186]
[1643708476379,1.53575106,2749.7,2749.2,0.13819997]
[1643708476380,1.53575106,2749.6,2749.4,0.6167]
[1643708476579,1.53575106,2749.5,2749.4,0.435]
[1643708476774,1.53575106,2749.5,2749.4,2.2537606]
[1643708477377,0.67595382,2750.0,2749.4,0.435]
[1643708477578,1.35153901,2750.6,2749.4,0.435]
[1643708477579,4.69333662,2750.1,2749.4,0.435]
[1643708477780,1.53575106,2750.0,2749.4,0.435]
[1643708477983,1.53575106,2749.9,2749.4,0.435]
[1643708478179,2.48163174,2749.8,2748.8,0.435]
[1643708478380,2.48163174,2749.8,2748.4,0.25]
[1643708478381,2.99927685,2749.7,2748.5,0.435]
[1643708478579,1.71745106,2749.6,2748.5,0.435]
[1643708478777,1.53575106,2749.5,2748.5,0.435]
[1643708479006,0.1817,2749.4,2748.5,0.435]
[1643708479308,1.53575106,2749.3,2748.5,0.435]
[1643708479511,0.1817,2749.2,2748.5,0.435]
[1643708479715,5.1426328,2748.6,2748.5,0.435]
[1643708479908,3.15758556,2749.5,2748.5,0.435]
[1643708480110,4.01749398,2749.4,2748.5,0.435]
[1643708480309,4.01749398,2749.4,2747.9,0.435]
[1643708480310,2.21181606,2749.3,2747.9,0.435]
[1643708480511,0.71712631,2748.8,2747.9,0.435]
[1643708480708,1.71776224,2748.7,2747.9,0.735]
[1643708480914,1.53586224,2748.6,2747.9,0.735]
[1643708481110,0.62454292,2748.5,2747.9,0.735]
[1643708481311,0.44264292,2748.5,2747.9,0.735]
[1643708481513,0.44264292,2748.5,2747.9,0.3]
[1643708481914,0.71712631,2748.8,2747.1,0.1819]
[1643708481915,0.34604185,2747.4,2747.1,0.1819]
[1643708482217,0.34604185,2747.4,2746.8,1.435]
[1643708482218,0.34604185,2747.4,2746.9,1.0]
[1643708482613,0.34604185,2747.4,2746.9,0.1819]
[1643708482894,0.34604185,2747.4,2745.8,0.00151661]
[1643708482895,2.26137063,2747.3,2746.3,0.1819]
[1643708483385,2.26137063,2747.3,2746.2,0.27639994]
[1643708483584,0.1819,2747.3,2746.2,0.27639994]
[1643708483786,2.89801824,2747.7,2746.2,0.27639994]
[1643708483787,0.1819,2747.6,2746.2,0.27639994]
[1643708483986,0.1819,2747.6,2746.2,1.54806364]
[1643708484187,0.80808856,2747.3,2746.2,1.54806364]
[1643708484386,0.409452,2746.7,2746.2,1.54806364]
[1643708485391,0.409452,2746.7,2746.2,1.84806364]
[1643708485592,0.409452,2746.7,2746.2,2.14806364]
[1643708485788,0.409452,2746.7,2746.2,1.8716637]
[1643708486190,2.46450156,2746.7,2746.2,1.5716637]
[1643708486393,2.55370898,2746.7,2746.2,1.5716637]
[1643708486816,0.06780215,2746.1,2745.9,0.1819]
[1643708487219,0.06780215,2746.1,2745.3,0.1819]
[1643708488028,0.38558695,2745.8,2745.3,1.0926242]
[1643708488626,0.06780215,2746.1,2745.3,1.0926242]
[1643708489629,0.32772859,2745.7,2745.3,0.1819]
[1643708489828,0.06780215,2746.1,2745.3,0.1819]
[1643708490267,0.68731392,2745.8,2745.3,0.1819]
[1643708490469,0.1821,2746.0,2745.3,0.1819]
[1643708490673,0.06780215,2746.1,2745.3,0.1819]
[1643708490873,0.40114057,2745.9,2745.3,0.1819]
[1643708491873,0.1821,2745.8,2745.3,0.1819]
[1643708492478,0.68630264,2745.7,2745.3,0.1819]
[1643708492678,0.1821,2745.6,2745.3,0.1819]
[1643708492876,0.68630264,2745.7,2745.3,0.1819]
[1643708493075,4.5681,2745.0,2744.7,0.27639994]
[1643708493880,2.08174002,2744.9,2743.6,0.18212]
[1643708494128,2.09394112,2744.8,2744.2,0.1821]
[1643708494331,2.09394112,2744.8,2743.3,0.1929]
[1643708494332,0.99494504,2744.8,2743.5,0.1822]
[1643708494524,0.1822,2744.7,2743.4,0.1822]
[1643708494926,0.1822,2744.7,2743.3,0.1822]
[1643708495326,0.1822,2744.7,2743.4,0.435]
[1643708495525,2.08174002,2744.8,2743.4,0.435]
[1643708495727,0.4718,2744.9,2743.7,0.01264914]
[1643708495928,0.4718,2744.9,2743.8,0.435]
[1643708495929,0.41047325,2744.6,2743.8,0.435]
[1643708497026,0.69214532,2744.4,2743.8,0.435]
[1643708497225,0.69214532,2744.4,2743.9,0.1822]
[1643708497425,0.41047325,2744.6,2744.0,0.435]
[1643708498369,2.21055455,2744.5,2743.8,0.1822]
[1643708498573,1.20745199,2743.6,2743.5,0.1822]
[1643708498776,1.20745199,2743.6,2743.3,0.1822]
[1643708498970,1.20745199,2743.6,2742.2,1.2950915]
[1643708498971,3.2,2743.5,2742.2,1.2950915]
[1643708499170,1.20745199,2743.6,2742.2,1.1129715]
[1643708499171,2.39119892,2743.4,2742.2,1.1129715]
[1643708499374,2.57330892,2743.5,2742.2,1.1129715]
[1643708500476,2.57330892,2743.5,2741.9,0.5]
[1643708500477,0.33715413,2742.7,2741.9,0.5]
[1643708500672,0.13819997,2742.9,2741.9,0.5]
[1643708500870,0.1822,2742.8,2741.9,0.5]
[1643708501078,0.94534889,2742.7,2741.5,29.95]
[1643708501382,0.94534889,2742.7,2740.7,0.5]
[1643708501383,0.01253358,2742.2,2740.7,0.5]
[1643708501633,0.0121304,2741.6,2740.7,0.5]
[1643708501831,0.00561024,2742.1,2740.7,0.68212]
[1643708502031,0.00561024,2742.1,2740.9,1.0]
[1643708502232,0.00561024,2742.1,2741.0,0.435]
[1643708502430,0.00561024,2742.1,2740.7,0.68212]
[1643708502628,2.21460916,2742.1,2740.7,0.68212]
[1643708502827,0.00561024,2742.1,2740.7,0.68212]
[1643708503031,0.89841004,2742.2,2740.7,0.18212]
[1643708503230,0.8993555,2741.6,2740.8,0.5]
[1643708503432,1.24938773,2741.6,2740.8,0.5]
[1643708503633,0.1822,2742.2,2740.8,0.5]
[1643708503938,3.4817,2742.6,2741.2,0.01278338]
[1643708503939,0.1823,2742.6,2741.2,0.01278338]
[1643708504132,0.13819997,2742.9,2741.3,0.36442]
[1643708504331,0.13819997,2742.9,2741.9,0.01279395]
[1643708504531,0.13819997,2743.2,2742.0,0.6172]
[1643708504532,1.42563428,2743.2,2742.0,0.6172]
[1643708504731,1.42563428,2743.2,2742.1,2.9619805]
[1643708504930,0.86818559,2743.2,2742.2,0.6172]
[1643708505128,0.86818559,2743.2,2742.2,1.6172]
[1643708505364,1.05029559,2743.2,2742.2,0.6172]
[1643708505569,0.1822,2743.1,2742.2,0.6172]
[1643708505972,0.01222269,2744.1,2743.0,0.01202875]
[1643708506171,0.1822,2745.4,2744.0,0.99999999]
[1643708506371,0.1822,2745.4,2744.2,0.99999999]
[1643708506572,0.1821,2745.5,2744.3,0.435]
[1643708506771,0.1821,2745.5,2744.0,0.435]
[1643708506968,0.36933896,2744.4,2743.8,0.99999999]
[1643708507169,0.36933896,2744.4,2743.9,1.43499999]
[1643708507372,0.36933896,2744.4,2744.0,0.435]
[1643708507770,0.1822,2744.8,2744.2,0.99999999]
[1643708507972,0.1821,2745.2,2744.3,0.435]
[1643708508171,0.1821,2745.2,2744.4,0.435]
[1643708508373,0.1821,2745.4,2744.1,0.435]
[1643708508770,0.92406445,2745.1,2744.1,0.435]
[1643708509018,0.1821,2745.0,2744.3,0.99999999]
[1643708509241,0.1821,2745.2,2744.1,0.435]
[1643708509431,0.1821,2745.2,2744.4,0.99999999]
[1643708509630,0.1821,2745.2,2744.4,0.435]
[1643708509833,0.012787,2744.7,2743.7,0.435]
[1643708510034,0.012787,2744.7,2743.0,0.6172]
[1643708510035,0.32000398,2743.3,2743.0,0.6172]
[1643708510233,0.32000398,2743.3,2742.6,0.435]
[1643708510831,0.32000398,2743.3,2742.7,0.99999999]
[1643708511031,0.1822,2744.0,2742.6,0.435]
[1643708511235,0.69277884,2743.4,2743.0,0.99999999]
[1643708511436,0.1822,2744.0,2742.7,0.99999999]
[1643708511737,0.1822,2744.0,2742.3,0.435]
[1643708511738,0.01244404,2743.5,2742.3,0.435]
[1643708512131,0.1822,2743.4,2742.0,1.18219999]
[1643708512532,0.68050975,2743.0,2742.0,0.1822]
[1643708512769,0.1822,2743.4,2742.8,0.99999999]
[1643708512969,0.1822,2744.3,2742.8,0.99999999]
[1643708513173,0.36384882,2743.8,2742.8,0.99999999]
[1643708513372,0.1822,2744.3,2743.1,0.99999999]
[1643708513772,0.1822,2744.3,2743.6,0.99999999]
[1643708514173,0.1822,2744.4,2743.6,0.99999999]
[1643708514376,0.1822,2744.4,2743.0,0.1822]
[1643708514377,0.37078332,2743.5,2743.1,0.99999999]
[1643708514776,0.1822,2744.4,2743.0,0.1822]
[1643708514977,0.1822,2744.4,2743.1,0.49999999]
[1643708515378,0.1822,2744.4,2743.0,1.2734682]
[1643708515575,0.70855268,2743.6,2743.0,1.2734682]
[1643708515775,0.1822,2744.4,2743.1,1.2734682]
[1643708515975,0.1822,2744.4,2743.1,0.49999999]
[1643708515976,0.44436786,2743.7,2743.1,0.49999999]
[1643708516376,0.44436786,2743.7,2743.1,1.2734682]
[1643708517026,0.80016142,2743.5,2743.1,1.2734682]
[1643708517219,0.44436786,2743.7,2743.1,1.2734682]
[1643708517823,0.1822,2744.4,2743.2,0.49999999]
[1643708518021,0.1822,2744.4,2743.2,1.2734682]
[1643708518225,0.78641038,2743.7,2743.3,0.49999999]
[1643708518422,0.1822,2744.4,2743.3,1.2734682]
[1643708518823,0.43714176,2744.2,2743.2,1.2734682]
[1643708519025,0.43714176,2744.2,2743.3,0.49999999]
[1643708519323,2.27665304,2744.1,2743.3,1.2734682]
[1643708519528,2.45885304,2744.1,2743.3,1.2734682]
[1643708519723,2.45322125,2744.1,2743.3,1.2734682]
[1643708519922,0.1822,2744.1,2743.4,0.49999999]
[1643708520126,0.43714176,2744.2,2743.5,0.1822]
[1643708520380,1.326,2744.6,2743.5,0.68219999]
[1643708520581,0.1822,2744.6,2743.5,1.4556682]
[1643708520778,0.1822,2744.6,2743.5,2.1906682]
[1643708520779,0.67664911,2744.3,2743.5,2.1906682]
[1643708520981,0.67664911,2744.3,2743.5,2.0084682]
[1643708521179,0.67664911,2744.3,2743.5,1.7084682]
[1643708521381,0.67664911,2744.3,2743.8,0.49999999]
[1643708521382,0.4107735,2744.0,2743.8,0.49999999]
[1643708521580,0.67664911,2744.3,2743.8,0.49999999]
[1643708521779,0.67664911,2744.3,2743.6,0.49999999]
[1643708521980,0.67664911,2744.3,2743.8,1.2734682]
[1643708522183,2.56894478,2744.6,2743.6,1.2734682]
[1643708522184,0.1822,2744.6,2743.6,1.2734682]
[1643708522483,0.32916023,2744.8,2744.1,0.49999999]
[1643708522680,0.32916023,2744.8,2744.2,0.435]
[1643708522879,0.32916023,2744.8,2744.2,0.9171]
[1643708523278,0.32916023,2744.8,2744.2,1.7084682]
[1643708523480,0.32916023,2744.8,2744.2,2.0084682]
[1643708523683,2.2737195,2744.7,2744.2,1.7084682]
[1643708523884,0.1821,2744.7,2744.2,1.2734682]
[1643708524118,2.4558195,2744.7,2744.2,1.2734682]
[1643708524320,0.60900934,2744.6,2744.2,1.2734682]
[1643708524521,0.79110934,2744.5,2744.2,1.2734682]
[1643708524725,0.60900934,2744.5,2744.2,1.2734682]
[1643708526828,0.60900934,2744.1,2743.5,0.18212]
[1643708527032,0.60900934,2744.1,2744.0,5.44999999]
[1643708527228,0.60900934,2744.1,2744.0,2.53499999]
[1643708527625,0.60900934,2744.1,2744.0,1.53499999]
[1643708527891,0.60900934,2744.1,2744.0,2.2172]
[1643708528095,0.60900934,2744.1,2744.0,1.2172]
[1643708529192,0.44720548,2744.6,2744.0,1.2172]
[1643708529393,0.1822,2745.3,2744.1,0.1821]
[1643708529595,1.53796949,2745.2,2744.5,0.49999999]
[1643708529898,0.1821,2745.4,2744.7,0.49999999]
[1643708530295,0.38420156,2745.1,2744.7,0.49999999]
[1643708530493,0.38420156,2745.1,2744.6,0.3]
[1643708530699,0.38420156,2745.1,2744.5,0.79999999]
[1643708531097,0.70273874,2745.3,2744.5,0.79999999]
[1643708531297,1.53786862,2745.2,2744.6,0.3]
[1643708531521,1.53786862,2745.2,2744.1,0.1821]
[1643708531711,0.70273874,2745.3,2744.2,0.735]
[1643708532116,0.70273874,2745.3,2744.2,0.435]
[1643708532117,0.38478919,2745.0,2744.2,0.435]
[1643708532318,0.38478919,2745.0,2744.1,0.1821]
[1643708532319,1.72009219,2744.9,2744.1,0.1821]
[1643708532522,1.53799219,2744.8,2744.1,0.1821]
[1643708532721,0.1821,2744.7,2743.5,0.49999999]
[1643708532918,0.1821,2744.7,2743.1,0.93499999]
[1643708533119,0.6703845,2743.9,2743.1,0.93499999]
[1643708533322,0.6703845,2743.9,2743.1,0.435]
[1643708533520,0.1822,2745.0,2743.2,0.49999999]
[1643708533720,1.53817233,2744.9,2743.2,0.49999999]
[1643708533920,0.1822,2744.8,2743.2,0.49999999]
[1643708534120,0.1822,2744.8,2743.4,0.49999999]
[1643708534121,0.37815136,2744.4,2743.4,0.49999999]
[1643708534320,0.37815136,2744.4,2743.4,0.3]
[1643708534527,0.1822,2744.3,2743.5,0.49999999]
[1643708534821,0.1822,2744.3,2743.8,0.49999999]
[1643708535276,0.1822,2744.3,2744.0,0.49999999]
[1643708535470,7.48102613,2745.1,2743.8,0.49999999]
[1643708535471,0.1822,2745.0,2743.8,0.49999999]
[1643708535671,1.53802819,2744.9,2743.6,0.1822]
[1643708535871,0.1821,2744.8,2743.8,0.3]
[1643708536076,1.53802819,2744.7,2743.9,3.00190559]
[1643708536274,1.1518,2745.2,2744.0,1.0]
[1643708536475,0.32711382,2744.8,2744.2,0.49999999]
[1643708536680,0.32711382,2744.8,2744.3,0.6171]
[1643708536874,0.32711382,2744.8,2744.3,0.735]
[1643708537076,0.87947174,2745.0,2744.3,0.735]
[1643708537274,1.53789493,2744.9,2744.3,1.035]
[1643708537479,0.87947174,2745.0,2744.3,1.2171]
[1643708537678,0.87947174,2745.0,2744.6,0.49999999]
[1643708538076,0.87947174,2745.0,2744.3,1.035]
[1643708538077,1.53790504,2744.9,2744.3,1.035]
[1643708538278,1.53790504,2744.9,2744.3,1.53499999]
[1643708538675,1.53790504,2744.9,2744.6,0.49999999]
[1643708538876,0.89085316,2744.5,2744.3,0.435]
[1643708539126,0.44473347,2744.1,2743.7,0.435]
[1643708539423,0.89085316,2744.5,2743.7,0.6]
[1643708539623,0.1822,2745.1,2743.6,0.1821]
[1643708539827,1.53803284,2745.0,2744.4,0.49999999]
[1643708540230,0.36243719,2744.7,2744.4,0.79999999]
[1643708540631,0.95420378,2744.9,2744.4,0.79999999]
[1643708540825,0.95420378,2744.9,2744.4,0.3]
[1643708541228,0.95420378,2744.9,2744.2,0.79999999]
[1643708541441,0.1821,2745.3,2744.2,0.79999999]
[1643708541631,0.32327173,2744.8,2744.2,0.3]
[1643708541828,0.1821,2745.1,2744.1,1.035]
[1643708542028,1.537939,2745.0,2744.6,0.49999999]
[1643708542232,1.537939,2745.3,2744.6,0.49999999]
[1643708542427,0.91828608,2744.8,2744.1,1.035]
[1643708542886,0.35277593,2744.6,2744.1,1.035]
[1643708543077,0.91828608,2744.8,2744.1,1.035]
[1643708543477,0.91828608,2744.8,2744.1,0.435]
[1643708544079,1.25459564,2744.8,2744.1,0.435]
[1643708544477,1.43669564,2744.8,2744.1,0.435]
[1643708544883,1.53798767,2744.7,2743.7,0.1821]
[1643708545087,1.53798767,2744.7,2743.4,0.1821]
[1643708545088,0.39248485,2743.9,2743.4,0.1821]
[1643708545282,0.94137174,2743.7,2742.9,0.68219999]
[1643708545485,0.94137174,2743.7,2742.8,0.01389764]
[1643708545486,0.1822,2743.6,2742.8,0.01389764]
[1643708545684,0.1822,2743.6,2742.7,0.49999999]
[1643708545882,0.43886086,2743.0,2742.4,0.1822]
[1643708546085,0.43886086,2743.0,2742.2,0.49999999]
[1643708546086,0.43886086,2743.0,2742.2,0.68219999]
[1643708546281,2.45201004,2743.6,2742.2,0.68219999]
[1643708546530,0.67144891,2742.5,2742.2,0.1822]
[1643708546728,0.4431,2743.1,2742.1,0.1822]
[1643708546729,2.26981004,2743.0,2742.1,0.1822]
[1643708546928,0.1822,2743.0,2742.1,0.1822]
[1643708547332,2.45201004,2743.8,2742.4,0.49999999]
[1643708547528,2.45201004,2743.8,2742.7,0.49999999]
[1643708547737,2.45201004,2743.8,2742.9,0.49999999]
[1643708547933,2.45201004,2743.8,2742.6,0.49999999]
[1643708547934,0.72050626,2743.3,2742.6,0.49999999]
[1643708548236,0.1822,2743.8,2743.1,0.49999999]
[1643708548432,0.38591497,2743.5,2743.1,0.49999999]
[1643708548631,0.38591497,2743.5,2742.3,0.3]
[1643708548632,3.80843036,2743.4,2742.3,0.435]
[1643708548835,1.72082032,2743.3,2742.1,0.1822]
[1643708549134,0.1822,2743.4,2742.5,0.49999999]
[1643708549533,0.89634595,2743.3,2742.5,0.49999999]
[1643708549733,0.89634595,2743.3,2742.7,0.49999999]
[1643708549933,0.89634595,2743.3,2742.0,0.1822]
[1643708550137,0.36630638,2742.6,2742.0,0.4822]
[1643708550383,0.1822,2743.2,2742.0,0.31284222]
[1643708550586,0.89634595,2743.3,2742.1,0.1822]
[1643708550787,2.91722126,2743.2,2742.0,0.81284221]
[1643708550985,0.18092139,2743.2,2742.0,0.31284222]
[1643708551184,0.18092139,2743.2,2742.5,0.49999999]
[1643708551389,1.18644595,2743.3,2742.5,0.49999999]
[1643708551390,1.18644595,2743.3,2742.5,0.79999999]
[1643708551586,0.88119384,2742.8,2742.5,0.79999999]
[1643708551787,0.1822,2743.3,2742.7,0.49999999]
[1643708552186,0.1822,2743.3,2742.7,0.79999999]
[1643708552388,0.1822,2743.6,2742.8,0.49999999]
[1643708552586,1.53857081,2743.5,2742.7,0.3]
[1643708552788,0.32039997,2743.7,2742.6,0.4822]
[1643708552987,0.82299558,2743.5,2742.6,0.4822]
[1643708553186,0.13819997,2743.7,2742.6,0.4822]
[1643708553187,0.13819997,2743.7,2743.3,0.49999999]
[1643708553395,16.76114207,2744.5,2743.5,0.49999999]
[1643708553396,2.28218998,2744.4,2743.5,0.49999999]
[1643708553690,1.53829679,2744.3,2743.4,0.68219999]
[1643708553890,1.53829679,2744.2,2743.7,0.49999999]
[1643708554141,1.53829679,2744.1,2743.7,0.79999999]
[1643708554340,0.85269121,2744.5,2743.7,0.3]
[1643708554540,1.53824372,2744.4,2743.8,0.49999999]
[1643708554740,1.53824372,2744.4,2743.4,0.4822]
[1643708555141,1.53824372,2744.4,2743.4,0.98219999]
[1643708555344,1.53824372,2744.4,2744.2,0.49999999]
[1643708555649,0.13819997,2745.0,2744.2,0.79999999]
[1643708555650,0.1821,2744.8,2744.2,0.79999999]
[1643708555844,0.8039731,2745.0,2744.2,0.79999999]
[1643708555845,1.53813296,2744.7,2744.2,0.3]
[1643708556048,1.53813296,2744.6,2744.2,0.3]
[1643708556244,1.53813296,2744.5,2744.2,0.49999999]
[1643708556446,1.72023296,2744.7,2744.2,0.49999999]
[1643708556644,1.53808719,2744.6,2744.2,0.3]
[1643708556842,1.53808719,2744.6,2743.6,0.1821]
[1643708557043,1.53808719,2744.6,2744.0,0.49999999]
[1643708557244,1.53808719,2744.6,2744.0,0.79999999]
[1643708557643,1.53808719,2744.6,2744.0,0.6]
[1643708558080,1.53808719,2744.6,2744.0,0.3]
[1643708558278,0.1821,2744.5,2743.7,1.035]
[1643708558479,1.53808719,2744.4,2743.7,0.6]
[1643708558882,1.53808719,2744.4,2743.6,0.79999999]
[1643708559079,1.53808719,2744.3,2744.0,0.49999999]
[1643708559278,0.1822,2744.6,2744.0,0.3]
[1643708559481,1.53813968,2744.5,2743.4,0.1822]
[1643708559682,2.44567684,2744.4,2743.0,0.1822]
[1643708559882,1.53813968,2744.3,2742.9,0.1822]
[1643708560081,2.44567684,2744.2,2742.8,1.54162885]
[1643708560280,1.53813968,2744.1,2742.8,1.54162885]
[1643708560480,1.13517138,2743.8,2742.8,1.54162885]
[1643708560881,1.53850607,2743.7,2742.8,1.54162885]
[1643708561084,1.72070607,2743.7,2742.3,0.6172]
[1643708561285,1.53850607,2743.6,2742.3,0.9172]
[1643708561527,1.53850607,2743.6,2742.3,0.6172]
[1643708561734,0.01259287,2744.0,2742.3,0.6172]
[1643708561735,0.01259287,2744.0,2742.3,0.79932]
[1643708561930,1.53840962,2743.9,2742.6,0.01267308]
[1643708562128,2.43849741,2744.6,2742.7,0.61712]
[1643708562329,1.53833216,2744.5,2742.7,0.61712]
[1643708562529,0.37286733,2744.2,2742.7,0.61712]
[1643708562732,0.77569688,2743.8,2742.7,0.91712]
[1643708562930,0.77569688,2743.8,2742.7,0.735]
[1643708563132,0.77569688,2743.8,2742.7,0.435]
[1643708563133,4.09963431,2743.7,2742.7,0.435]
[1643708563330,2.46726803,2743.7,2742.3,1.3993]
[1643708563532,1.53849919,2743.6,2742.3,0.1822]
[1643708563734,0.1822,2743.5,2742.3,0.1822]
[1643708564134,2.47788635,2743.7,2741.9,0.1822]
[1643708564135,0.1822,2743.6,2741.9,0.1822]
[1643708564333,1.53862852,2743.5,2741.9,0.1822]
[1643708564533,0.1822,2743.4,2741.9,1.54717837]
[1643708564734,0.1822,2743.5,2742.0,0.435]
[1643708564937,0.1822,2743.7,2742.1,0.1822]
[1643708565133,0.80399501,2743.3,2742.2,0.435]
[1643708565379,0.80399501,2743.3,2742.3,0.1822]
[1643708565583,0.80399501,2743.3,2742.4,0.435]
[1643708565779,0.80399501,2743.3,2742.4,0.685]
[1643708566681,0.1822,2743.2,2742.4,0.435]
[1643708567782,2.75453352,2743.7,2742.4,0.435]
[1643708567783,0.1822,2743.7,2742.4,0.435]
[1643708567987,0.1822,2743.7,2742.7,0.01276154]
[1643708568185,10.51609296,2744.6,2742.8,0.6172]
[1643708568186,2.44567684,2744.4,2742.8,0.6172]
[1643708568385,1.53835479,2744.3,2742.8,0.6172]
[1643708568591,0.01224177,2744.0,2742.4,0.3]
[1643708568785,1.72055479,2743.9,2742.4,0.3]
[1643708569032,1.53835479,2743.8,2742.3,0.9172]
[1643708569233,0.1822,2743.7,2742.3,1.2172]
[1643708569432,2.44567684,2743.7,2742.3,1.2172]
[1643708569633,0.01224177,2744.0,2742.3,0.435]
[1643708569634,1.53859053,2743.6,2742.3,0.435]
[1643708569836,0.01240452,2743.3,2741.8,1.5457678]
[1643708570033,1.72079053,2743.2,2741.8,1.55873191]
[1643708570236,0.1822,2743.2,2741.9,0.1822]
[1643708570433,2.26347684,2743.7,2741.9,0.1822]
[1643708570434,0.76786041,2743.1,2741.9,0.1822]
[1643708571033,0.44187895,2742.9,2741.9,0.1822]
[1643708571433,0.76786041,2743.1,2741.9,0.1822]
[1643708571833,0.8983134,2742.6,2741.9,0.1822]
[1643708572033,1.1687,2743.4,2741.9,0.1822]
[1643708572034,3.14449459,2743.3,2741.9,0.1822]
[1643708572234,0.1822,2743.1,2741.9,0.4822]
[1643708572439,0.1822,2743.2,2741.9,0.1822]
[1643708572635,0.1822,2743.2,2741.9,0.9172]
[1643708573094,0.94361901,2742.9,2742.0,0.3]
[1643708573501,0.33392335,2742.5,2742.0,0.3]
[1643708573906,0.1822,2742.4,2741.9,0.3]
[1643708574209,0.1822,2742.4,2741.4,1.5443329]
[1643708574399,0.1822,2742.8,2741.4,1.7265329]
[1643708574802,0.1822,2742.8,2741.5,2.27614926]
[1643708575002,0.1822,2743.3,2741.6,0.1822]
[1643708575201,1.53879666,2743.2,2741.7,0.435]
[1643708575407,0.37451089,2742.7,2741.7,0.435]
[1643708575601,0.37451089,2742.7,2741.6,0.1822]
[1643708575802,0.37451089,2742.7,2741.4,0.3]
[1643708575803,0.1822,2742.6,2741.4,0.3]
[1643708576001,0.31990614,2741.8,2741.2,3.2160329]
[1643708576200,0.1822,2742.6,2741.2,1.9793329]
[1643708576836,0.1822,2742.6,2741.4,0.91192]
[1643708577031,0.1822,2742.6,2741.4,2.7353891]
[1643708577329,0.1822,2742.6,2741.5,2.58001297]
[1643708577736,0.1822,2742.6,2741.7,1.211769]
[1643708577934,1.1546,2742.7,2741.8,3.79552643]
[1643708578134,1.1546,2742.7,2741.9,0.3]
[1643708578335,0.36702647,2742.4,2741.9,0.3]
[1643708578536,0.36702647,2742.4,2741.8,0.3]
[1643708578735,0.36702647,2742.4,2741.5,1.8236]
[1643708578936,0.1822,2742.3,2741.2,1.5443329]
[1643708579535,0.1822,2742.3,2741.4,0.91194]
[1643708579736,1.1546,2742.7,2741.5,0.435]
[1643708579737,0.1822,2742.6,2741.5,0.435]
[1643708580378,0.86030585,2742.4,2741.5,3.11038884]
[1643708580578,0.1822,2742.6,2741.5,0.435]
[1643708580779,1.1546,2742.7,2741.6,0.1822]
[1643708581179,2.26347684,2742.6,2741.6,0.1822]
[1643708581379,1.1546,2742.7,2741.6,0.1822]
[1643708581578,0.41233701,2742.2,2741.6,0.1822]
[1643708581781,0.41233701,2742.2,2741.5,0.435]
[1643708581986,0.1822,2742.1,2741.3,1.5443329]
[1643708582381,0.89987709,2741.6,2740.8,1.8240816]
[1643708582884,0.89987709,2741.6,2740.7,1.09441]
[1643708583084,0.89987709,2741.6,2740.7,0.91221]
[1643708584242,0.42849578,2741.1,2740.7,1.09461]
[1643708584443,0.42849578,2741.1,2740.6,0.5]
[1643708585038,0.76640567,2741.0,2740.6,0.5]
[1643708585844,0.1824,2740.9,2740.1,0.00093482]
[1643708586242,0.18647451,2740.9,2740.0,100.0]
[1643708586441,2.44587684,2740.9,2740.0,100.0]
[1643708586841,0.9544736,2740.5,2740.0,100.0]
[1643708587041,2.71027684,2741.0,2740.0,100.0]
[1643708587042,0.1824,2740.4,2740.0,100.0]
[1643708587248,0.1824,2740.6,2740.0,100.0]
[1643708587640,0.1824,2740.6,2740.0,99.31904309]
[1643708587641,7.2985,2740.5,2740.0,99.31904309]
[1643708587892,7.2985,2740.5,2740.0,97.18184309]
[1643708587893,0.1824,2740.4,2740.0,97.18184309]
[1643708588096,0.1824,2740.4,2740.0,90.21854309]
[1643708588097,0.87082674,2740.2,2740.0,90.21854309]
[1643708588292,7.2985,2740.1,2740.0,90.16854309]
[1643708590009,7.4809,2740.1,2740.0,90.16854309]
[1643708590400,8.6264067,2740.1,2740.0,90.16854309]
[1643708590800,8.6264067,2740.1,2740.0,76.94244309]
[1643708590999,8.8088067,2740.1,2740.0,75.29955089]
[1643708591199,7.2985,2740.1,2740.0,75.29955089]
[1643708591402,7.535279,2740.1,2740.0,75.29955089]
[1643708591647,7.535279,2740.1,2740.0,75.14955089]
[1643708592146,7.535279,2740.1,2740.0,75.44955089]
[1643708592351,7.535279,2740.1,2740.0,75.14955089]
[1643708592549,7.535279,2740.1,2740.0,75.44955089]
[1643708594551,7.535279,2740.1,2740.0,75.14955089]
[1643708598094,9.99456803,2740.1,2740.0,75.14955089]
[1643708598294,7.535279,2740.1,2740.0,75.14955089]
[1643708604087,7.535279,2740.1,2740.0,75.44955089]